fUST/lending_fUST_20240730
["ID","MTS","AMOUNT","RATE_DAILY","PERIOD"]
[333664478,1722323448874,-500.0,0.00013698,2]
[333664479,1722323448888,-151.0,0.00013698,2]
[333664480,1722323448898,-151.0,0.00013698,2]
[333664481,1722323448910,-151.0,0.00013698,2]
[333664482,1722323448922,-151.0,0.00013698,2]
[333664483,1722323448932,-151.0,0.00013698,2]
[333664484,1722323448943,-151.0,0.00013698,2]
[333664485,1722323448953,-500.0,0.00013698,2]
[333664486,1722323448963,-649.18579409,0.00013698,2]
[333664487,1722323448973,-201.73748,0.00013698,2]
[333664488,1722323448982,-201.73748,0.00013698,2]
[333664489,1722323448992,-201.73748,0.00013698,2]
[333664490,1722323449002,-201.73748,0.00013698,2]
[333664491,1722323449012,-201.73748,0.00013698,2]
[333664492,1722323449022,-201.73748,0.00013698,2]
[333664493,1722323449032,-201.73748,0.00013698,2]
[333664494,1722323449042,-201.73748,0.00013698,2]
[333664495,1722323449052,-201.73748,0.00013698,2]
[333664496,1722323449062,-201.73748,0.00013698,2]
[333664497,1722323449071,-201.73748,0.00013698,2]
[333664498,1722323449081,-201.73748,0.00013698,2]
[333664499,1722323449090,-501.84887549,0.00013698,2]
[333664500,1722323449102,-507.51126654,0.00013698,2]
[333664501,1722323449113,-205.23119674,0.00013698,2]
[333664502,1722323449123,-535.5895676,0.00013698,2]
[333664503,1722323449134,-502.77077506,0.00013698,2]
[333664504,1722323449145,-500.0,0.00013698,2]
[333664505,1722323449155,-307.32856998,0.00013698,2]
[333664506,1722323449166,-502.2283621,0.00013698,2]
[333664507,1722323449176,-160.319067,0.00013698,2]
[333664508,1722323449190,-500.0,0.00013698,2]
[333664509,1722323449200,-501.96384222,0.00013698,2]
[333664510,1722323449210,-500.0,0.00013698,2]
[333664511,1722323449219,-502.59275407,0.00013698,2]
[333664512,1722323449229,-500.0,0.00013698,2]
[333664513,1722323449239,-500.0,0.00013698,2]
[333664514,1722323449250,-500.0,0.00013698,2]
[333664515,1722323449261,-500.0,0.00013698,2]
[333664516,1722323449270,-500.0,0.00013698,2]
[333664517,1722323449280,-500.0,0.00013698,2]
[333664518,1722323449290,-500.0,0.00013698,2]
[333664519,1722323449300,-238.8963325,0.00013698,2]
[333664520,1722323449310,-151.229527,0.00013698,2]
[333664521,1722323449320,-474.86079745,0.00013698,2]
[333664522,1722323449330,-500.0,0.00013698,2]
[333664523,1722323449340,-500.0,0.00013698,2]
[333664524,1722323449351,-500.0,0.00013698,2]
[333664525,1722323449361,-500.0,0.00013698,2]
[333664526,1722323449371,-500.0,0.00013698,2]
[333664527,1722323449382,-500.0,0.00013698,2]
[333664528,1722323449394,-500.0,0.00013698,2]
[333664529,1722323449403,-500.0,0.00013698,2]
[333664530,1722323449413,-500.0,0.00013698,2]
[333664531,1722323449428,-500.0,0.00013698,2]
[333664532,1722323449439,-507.05338622,0.00013698,2]
[333664533,1722323449450,-500.0,0.00013698,2]
[333664534,1722323449460,-500.0,0.00013698,2]
[333664535,1722323449470,-500.0,0.00013698,2]
[333664536,1722323449480,-500.0,0.00013698,2]
[333664537,1722323449490,-505.50183349,0.00013698,2]
[333664538,1722323449500,-500.0,0.00013698,2]
[333664539,1722323449510,-500.0,0.00013698,2]
[333664540,1722323449520,-151.0,0.00013698,2]
[333664541,1722323449530,-151.0,0.00013698,2]
[333664542,1722323449540,-151.0,0.00013698,2]
[333664543,1722323449549,-151.0,0.00013698,2]
[333664544,1722323449559,-500.0,0.00013698,2]
[333664545,1722323449570,-151.0,0.00013698,2]
[333664546,1722323449580,-151.0,0.00013698,2]
[333664547,1722323449590,-151.0,0.00013698,2]
[333664548,1722323449600,-151.0,0.00013698,2]
[333664549,1722323449611,-284.219966,0.00013698,2]
[333664550,1722323449621,-152.053394,0.00013698,2]
[333664551,1722323449634,-501.40054139,0.00013698,2]
[333664552,1722323449645,-529.39988261,0.00013698,2]
[333664553,1722323449656,-520.87355681,0.00013698,2]
[333664554,1722323449671,-151.0,0.00013698,2]
[333664555,1722323449682,-515.72241009,0.00013698,2]
[333664556,1722323449692,-500.0,0.00013698,2]
[333664557,1722323449702,-609.59945594,0.00013698,2]
[333664558,1722323449713,-151.0,0.00013698,2]
[333664559,1722323449723,-281.92695778,0.00013698,2]
[333664560,1722323449733,-504.77377842,0.00013698,2]
[333664561,1722323449746,-396.26933267,0.00013698,2]
[333664562,1722323449756,-500.0,0.00013698,2]
[333664563,1722323449834,-502.27720564,0.00013698,2]
[333664564,1722323449844,-500.0,0.00013698,2]
[333664565,1722323449854,-505.93005352,0.00013698,2]
[333664566,1722323449866,-500.0,0.00013698,2]
[333664567,1722323449876,-500.0,0.00013698,2]
[333664568,1722323449887,-151.0,0.00013698,2]
[333664569,1722323449898,-151.0,0.00013698,2]
[333664570,1722323449908,-151.0,0.00013698,2]
[333664571,1722323449918,-151.0,0.00013698,2]
[333664572,1722323449928,-151.0,0.00013698,2]
[333664573,1722323449938,-501.31137635,0.00013698,2]
[333664574,1722323449949,-151.0,0.00013698,2]
[333664575,1722323449960,-151.0,0.00013698,2]
[333664576,1722323449971,-184.429354,0.00013698,2]
[333664577,1722323449982,-510.6740763,0.00013698,2]
[333664578,1722323449993,-151.0,0.00013698,2]
[333664579,1722323450003,-151.0,0.00013698,2]
[333664580,1722323450014,-152.281011,0.00013698,2]
[333664581,1722323450023,-500.0,0.00013698,2]
[333664582,1722323450033,-151.0,0.00013698,2]
[333664583,1722323450042,-151.0,0.00013698,2]
[333664584,1722323450052,-151.0,0.00013698,2]
[333664585,1722323450063,-151.0,0.00013698,2]
[333664586,1722323450074,-151.0,0.00013698,2]
[333664587,1722323450085,-151.0,0.00013698,2]
[333664588,1722323450096,-151.0,0.00013698,2]
[333664589,1722323450107,-151.0,0.00013698,2]
[333664590,1722323450119,-151.0,0.00013698,2]
[333664591,1722323450129,-151.0,0.00013698,2]
[333664592,1722323450141,-500.0,0.00013698,2]
[333664593,1722323450151,-500.0,0.00013698,2]
[333664594,1722323450162,-599.59,0.00013698,2]
[333664595,1722323450172,-501.59045787,0.00013698,2]
[333664596,1722323450183,-500.0,0.00013698,2]
[333664597,1722323450195,-500.0,0.00013698,2]
[333664598,1722323450206,-152.237788,0.00013698,2]
[333664599,1722323450217,-151.0,0.00013698,2]
[333664600,1722323450227,-151.0,0.00013698,2]
[333664601,1722323450237,-502.80986087,0.00013698,2]
[333664602,1722323450248,-500.0,0.00013698,2]
[333664603,1722323450259,-500.0,0.00013698,2]
[333664604,1722323450270,-500.0,0.00013698,2]
[333664605,1722323450280,-151.0,0.00013698,2]
[333664606,1722323450291,-151.0,0.00013698,2]
[333664607,1722323450303,-151.0,0.00013698,2]
[333664608,1722323450314,-151.99451,0.00013698,2]
[333664609,1722323450325,-500.0,0.00013698,2]
[333664610,1722323450335,-151.0,0.00013698,2]
[333664611,1722323450346,-151.0,0.00013698,2]
[333664612,1722323450356,-151.0,0.00013698,2]
[333664613,1722323450366,-151.0,0.00013698,2]
[333664614,1722323450377,-151.0,0.00013698,2]
[333664615,1722323450391,-506.68091641,0.00013698,2]
[333664616,1722323450402,-151.0,0.00013698,2]
[333664617,1722323450412,-249.265767,0.00013698,2]
[333664618,1722323450421,-151.0,0.00013698,2]
[333664619,1722323450431,-151.0,0.00013698,2]
[333664620,1722323450440,-249.494831,0.00013698,2]
[333664621,1722323450451,-344.37887335,0.00013698,2]
[333664622,1722323450460,-151.0,0.00013698,2]
[333664623,1722323450470,-151.0,0.00013698,2]
[333664624,1722323450480,-151.0,0.00013698,2]
[333664625,1722323450491,-151.0,0.00013698,2]
[333664626,1722323450501,-151.0,0.00013698,2]
[333664627,1722323450513,-151.0,0.00013698,2]
[333664628,1722323450523,-151.0,0.00013698,2]
[333664629,1722323450533,-151.0,0.00013698,2]
[333664630,1722323450543,-151.0,0.00013698,2]
[333664631,1722323450554,-151.0,0.00013698,2]
[333664632,1722323450564,-151.0,0.00013698,2]
[333664633,1722323450574,-151.0,0.00013698,2]
[333664634,1722323450585,-151.0,0.00013698,2]
[333664635,1722323450595,-199.71292,0.00013698,2]
[333664636,1722323450606,-151.454678,0.00013698,2]
[333664637,1722323450617,-201.728005,0.00013698,2]
[333664638,1722323450627,-201.728005,0.00013698,2]
[333664639,1722323450642,-201.728005,0.00013698,2]
[333664640,1722323450652,-201.728005,0.00013698,2]
[333664641,1722323450665,-201.728005,0.00013698,2]
[333664642,1722323450675,-201.728005,0.00013698,2]
[333664643,1722323450684,-201.728005,0.00013698,2]
[333664644,1722323450694,-201.728005,0.00013698,2]
[333664645,1722323450704,-201.728005,0.00013698,2]
[333664646,1722323450713,-201.728005,0.00013698,2]
[333664647,1722323450723,-201.728005,0.00013698,2]
[333664648,1722323450736,-201.728005,0.00013698,2]
[333664649,1722323450747,-201.728005,0.00013698,2]
[333664650,1722323450757,-201.728005,0.00013698,2]
[333664651,1722323450767,-201.728005,0.00013698,2]
[333664652,1722323450776,-151.0,0.00013698,2]
[333664653,1722323450786,-201.728005,0.00013698,2]
[333664654,1722323450796,-151.0,0.00013698,2]
[333664655,1722323450806,-151.0,0.00013698,2]
[333664656,1722323450815,-151.0,0.00013698,2]
[333664657,1722323450825,-151.0,0.00013698,2]
[333664658,1722323450835,-204.969287,0.00013698,2]
[333664659,1722323450844,-151.0,0.00013698,2]
[333664660,1722323450854,-151.0,0.00013698,2]
[333664661,1722323450866,-151.0,0.00013698,2]
[333664662,1722323450875,-151.640203,0.00013698,2]
[333664663,1722323450886,-521.55958292,0.00013698,2]
[333664664,1722323450896,-151.0,0.00013698,2]
[333664665,1722323450906,-151.0,0.00013698,2]
[333664666,1722323450916,-180.001254,0.00013698,2]
[333664667,1722323450925,-151.0,0.00013698,2]
[333664668,1722323450935,-286.932073,0.00013698,2]
[333664669,1722323450944,-228.11785,0.00013698,2]
[333664670,1722323450954,-228.11785,0.00013698,2]
[333664671,1722323450963,-228.11785,0.00013698,2]
[333664672,1722323450973,-228.11785,0.00013698,2]
[333664673,1722323450983,-228.11785,0.00013698,2]
[333664674,1722323450993,-228.11785,0.00013698,2]
[333664675,1722323451002,-228.11785,0.00013698,2]
[333664676,1722323451012,-228.11785,0.00013698,2]
[333664677,1722323451022,-228.11785,0.00013698,2]
[333664678,1722323451032,-228.11785,0.00013698,2]
[333664679,1722323451041,-228.11785,0.00013698,2]
[333664680,1722323451051,-228.11785,0.00013698,2]
[333664681,1722323451060,-228.11785,0.00013698,2]
[333664682,1722323451070,-228.11785,0.00013698,2]
[333664683,1722323451079,-228.11785,0.00013698,2]
[333664684,1722323451088,-228.11785,0.00013698,2]
[333664685,1722323451098,-151.0,0.00013698,2]
[333664686,1722323451107,-151.0,0.00013698,2]
[333664687,1722323451117,-151.0,0.00013698,2]
[333664688,1722323451127,-151.0,0.00013698,2]
[333664689,1722323451139,-504.40749591,0.00013698,2]
[333664690,1722323451148,-151.0,0.00013698,2]
[333664691,1722323451158,-190.722153,0.00013698,2]
[333664692,1722323451167,-151.0,0.00013698,2]
[333664693,1722323451177,-151.0,0.00013699,2]
[333664694,1722323451186,-151.0,0.00013699,2]
[333664695,1722323451196,-151.0,0.00013699,2]
[333664696,1722323451205,-151.0,0.00013699,2]
[333664697,1722323451215,-151.0,0.00013699,2]
[333664698,1722323451224,-151.0,0.00013699,2]
[333664699,1722323451234,-355.0,0.00013699,2]
[333664700,1722323451244,-151.0,0.00013699,2]
[333664701,1722323451254,-151.0,0.00013699,2]
[333664702,1722323451264,-152.679808,0.00013699,2]
[333664703,1722323451274,-4116.825395,0.00013699,2]
[333664704,1722323451283,-3000.0,0.00013699,2]
[333664705,1722323451293,-56656.3679398,0.00013699,2]
[333664706,1722323451303,-151.0,0.00013699,2]
[333664707,1722323451312,-151.55515,0.00013699,2]
[333664708,1722323451322,-2720.6888311,0.00013699,2]
[333664709,1722323451332,-151.0,0.00013699,2]
[333664710,1722323451341,-151.0,0.00013699,2]
[333664711,1722323451350,-151.0,0.00013699,2]
[333664712,1722323451361,-151.0,0.00013699,2]
[333664713,1722323451371,-151.0,0.00013699,2]
[333664714,1722323451380,-151.0,0.00013699,2]
[333664715,1722323451392,-290.000552,0.00013699,2]
[333664716,1722323451402,-201.73748,0.00013699,2]
[333664717,1722323451412,-201.73748,0.00013699,2]
[333664718,1722323451422,-201.73748,0.00013699,2]
[333664719,1722323451435,-201.73748,0.00013699,2]
[333664720,1722323451445,-151.0,0.00013699,2]
[333664721,1722323451455,-151.0,0.00013699,2]
[333664722,1722323451466,-229.769176,0.00013699,2]
[333664723,1722323451476,-155.957215,0.00013699,2]
[333664724,1722323451486,-176.213179,0.00013699,2]
[333664725,1722323451495,-1000.0,0.00013699,2]
[333664726,1722323451505,-1000.0,0.00013699,2]
[333664727,1722323451515,-1000.0,0.00013699,2]
[333664728,1722323451528,-1000.0,0.00013699,2]
[333664729,1722323451538,-1000.0,0.00013699,2]
[333664730,1722323451549,-1000.0,0.00013699,2]
[333664731,1722323451562,-1000.0,0.00013699,2]
[333664732,1722323451573,-1000.0,0.00013699,2]
[333664733,1722323451582,-1000.0,0.00013699,2]
[333664734,1722323451592,-1000.0,0.00013699,2]
[333664735,1722323451601,-1000.0,0.00013699,2]
[333664736,1722323451610,-1000.0,0.00013699,2]
[333664737,1722323451620,-1000.0,0.00013699,2]
[333664738,1722323451631,-1000.0,0.00013699,2]
[333664739,1722323451641,-1000.0,0.00013699,2]
[333664740,1722323451651,-1000.0,0.00013699,2]
[333664741,1722323451663,-1000.0,0.00013699,2]
[333664742,1722323451674,-1000.0,0.00013699,2]
[333664743,1722323451685,-1000.0,0.00013699,2]
[333664744,1722323451694,-1000.0,0.00013699,2]
[333664745,1722323451704,-1000.0,0.00013699,2]
[333664746,1722323451715,-1000.0,0.00013699,2]
[333664747,1722323451724,-1000.0,0.00013699,2]
[333664748,1722323451734,-1000.0,0.00013699,2]
[333664749,1722323451745,-1000.0,0.00013699,2]
[333664750,1722323451755,-1000.0,0.00013699,2]
[333664751,1722323451765,-1000.0,0.00013699,2]
[333664752,1722323451774,-1000.0,0.00013699,2]
[333664753,1722323451783,-1000.0,0.00013699,2]
[333664754,1722323451793,-1000.0,0.00013699,2]
[333664755,1722323451802,-1000.0,0.00013699,2]
[333664756,1722323451812,-1000.0,0.00013699,2]
[333664757,1722323451821,-1000.0,0.00013699,2]
[333664758,1722323451830,-1000.0,0.00013699,2]
[333664759,1722323451840,-1000.0,0.00013699,2]
[333664760,1722323451849,-1000.0,0.00013699,2]
[333664761,1722323451859,-1000.0,0.00013699,2]
[333664762,1722323451870,-1000.0,0.00013699,2]
[333664763,1722323451879,-1000.0,0.00013699,2]
[333664764,1722323451889,-1000.0,0.00013699,2]
[333664765,1722323451898,-1000.0,0.00013699,2]
[333664766,1722323451910,-1000.0,0.00013699,2]
[333664767,1722323451920,-1000.0,0.00013699,2]
[333664768,1722323451930,-1000.0,0.00013699,2]
[333664769,1722323451941,-1000.0,0.00013699,2]
[333664770,1722323451951,-1000.0,0.00013699,2]
[333664771,1722323451962,-1000.0,0.00013699,2]
[333664772,1722323451973,-1000.0,0.00013699,2]
[333664773,1722323451982,-1000.0,0.00013699,2]
[333664774,1722323451991,-1000.0,0.00013699,2]
[333664775,1722323452001,-1000.0,0.00013699,2]
[333664776,1722323452011,-1000.0,0.00013699,2]
[333664777,1722323452105,-1000.0,0.00013699,2]
[333664778,1722323452115,-1000.0,0.00013699,2]
[333664779,1722323452124,-1000.0,0.00013699,2]
[333664780,1722323452135,-1000.0,0.00013699,2]
[333664781,1722323452146,-1000.0,0.00013699,2]
[333664782,1722323452155,-1000.0,0.00013699,2]
[333664783,1722323452164,-1000.0,0.00013699,2]
[333664784,1722323452173,-647.315822,0.00013699,2]
[333664785,1722323452184,-151.0,0.00013699,2]
[333664786,1722323452195,-201.728005,0.00013699,2]
[333664787,1722323452204,-201.728005,0.00013699,2]
[333664788,1722323452214,-201.728005,0.00013699,2]
[333664789,1722323452224,-201.728006,0.00013699,2]
[333664790,1722323452234,-228.11785,0.00013699,2]
[333664791,1722323452246,-228.11785,0.00013699,2]
[333664792,1722323452257,-228.11785,0.00013699,2]
[333664793,1722323452267,-228.117854,0.00013699,2]
[333664794,1722323452277,-150.112233,0.000137,2]
[333664795,1722323452287,-150.112233,0.000137,2]
[333664796,1722323452297,-150.112233,0.000137,2]
[333664797,1722323452307,-150.112233,0.000137,2]
[333664798,1722323452317,-150.112233,0.000137,2]
[333664799,1722323452327,-150.112233,0.000137,2]
[333664800,1722323452336,-150.112233,0.000137,2]
[333664801,1722323452347,-603.0,0.000137,2]
[333664802,1722323452358,-172.69431866,0.0001373,2]
[333664803,1722323452368,-172.69431866,0.00013795,2]
[333664804,1722323452378,-266.74357749,0.000138,2]
[333664805,1722323452389,-150.112233,0.000138,2]
[333664806,1722323452398,-150.112233,0.000138,2]
[333664807,1722323452408,-150.112233,0.000138,2]
[333664808,1722323452418,-150.112233,0.000138,2]
[333664809,1722323452427,-150.112233,0.000138,2]
[333664810,1722323452436,-150.112233,0.000138,2]
[333664811,1722323452445,-3200.0,0.00013806,2]
[333664812,1722323452454,-151.0,0.00013806,2]
[333664813,1722323452464,-397.321675,0.00013825,2]
[333664814,1722323452473,-294.736653,0.00013825,2]
[333664815,1722323452482,-161.508915,0.00013825,2]
[333664816,1722323452491,-191.255164,0.00013825,2]
[333664817,1722323452501,-172.69431866,0.00013861,2]
[333664818,1722323452512,-500.0,0.00013868,2]
[333664819,1722323452521,-2458.27,0.00013869,2]
[333664820,1722323452531,-2458.27,0.00013869,2]
[333664821,1722323452542,-500.0,0.00013879,2]
[333664822,1722323452554,-500.0,0.00013879,2]
[333664823,1722323452565,-500.0,0.00013879,2]
[333664824,1722323452575,-290.24054061,0.0001388,2]
[333664825,1722323452859,-151.0,0.00013698,2]
[333664826,1722323452870,-3211.46,0.0001388,2]
[333664827,1722323452907,-151.0,0.00013698,2]
[333664828,1722323452916,-151.0,0.00013698,2]
[333664829,1722323452928,-21234.875778,0.0001388,2]
[333664830,1722323452939,-1234.93,0.00013898,2]
[333664831,1722323452949,-500.0,0.00013899,2]
[333664832,1722323452960,-1360.55524287,0.000139,2]
[333664833,1722323452970,-150.112233,0.000139,2]
[333664834,1722323452980,-150.112233,0.000139,2]
[333664835,1722323452989,-150.112233,0.000139,2]
[333664836,1722323453000,-150.112233,0.000139,2]
[333664837,1722323453009,-150.112233,0.000139,2]
[333664838,1722323453019,-150.112233,0.000139,2]
[333664839,1722323453028,-596.55241707,0.000139,2]
[333664840,1722323453037,-150.112233,0.000139,2]
[333664841,1722323453046,-500.0,0.0001394,2]
[333664842,1722323453055,-500.0,0.0001394,2]
[333664843,1722323453065,-161.66849535,0.0001394,2]
[333664844,1722323453075,-1104.15123608,0.00013941,2]
[333664845,1722323453084,-151.0,0.0001395,2]
[333664846,1722323453093,-151.0,0.0001395,2]
[333664847,1722323453102,-508.31937502,0.00013951,2]
[333664848,1722323453111,-500.0,0.00013951,2]
[333664849,1722323453121,-2458.27,0.00013951,2]
[333664850,1722323453130,-500.0,0.00013951,2]
[333664851,1722323453140,-500.0,0.00013951,2]
[333664852,1722323453150,-500.0,0.00013952,2]
[333664853,1722323453159,-500.0,0.00013952,2]
[333664854,1722323453169,-500.0,0.00013952,2]
[333664855,1722323453178,-333.02,0.0001396,2]
[333664856,1722323453188,-166.51,0.0001396,2]
[333664857,1722323453197,-500.0,0.0001396,2]
[333664858,1722323453206,-2458.27,0.0001396,2]
[333664859,1722323453215,-500.0,0.0001396,2]
[333664860,1722323453225,-1234.93,0.0001396,2]
[333664861,1722323453235,-1230.49,0.00013961,2]
[333664862,1722323453244,-666.51,0.00013961,2]
[333664863,1722323453253,-666.51,0.00013961,2]
[333664864,1722323453262,-666.51,0.00013961,2]
[333664865,1722323453271,-500.0,0.00013961,2]
[333664866,1722323453281,-500.0,0.00013961,2]
[333664867,1722323453290,-500.0,0.00013961,2]
[333664868,1722323453299,-500.0,0.00013961,2]
[333664869,1722323453308,-368.71,0.00013961,2]
[333664870,1722323453318,-166.51,0.00013961,2]
[333664871,1722323453327,-500.0,0.00013961,2]
[333664872,1722323453337,-500.0,0.00013961,2]
[333664873,1722323453347,-500.0,0.00013961,2]
[333664874,1722323453356,-500.0,0.00013961,2]
[333664875,1722323453366,-151.0,0.00013961,2]
[333664876,1722323453376,-201.73748,0.00013961,2]
[333664877,1722323453386,-201.73748,0.00013961,2]
[333664878,1722323453395,-151.0,0.00013961,2]
[333664879,1722323453404,-500.0,0.0001397,2]
[333664880,1722323453414,-500.0,0.0001397,2]
[333664881,1722323453423,-1234.93,0.0001397,2]
[333664882,1722323453432,-1234.93,0.0001397,2]
[333664883,1722323453443,-1234.93,0.0001397,2]
[333664884,1722323453453,-1234.93,0.0001397,2]
[333664885,1722323453462,-1235.03908254,0.0001397,2]
[333664886,1722323453471,-1230.49,0.00013971,2]
[333664887,1722323453480,-1230.49,0.00013971,2]
[333664888,1722323453490,-1230.49,0.00013971,2]
[333664889,1722323453499,-1230.49,0.00013971,2]
[333664890,1722323453508,-1230.49,0.00013971,2]
[333664891,1722323453517,-1230.49,0.00013971,2]
[333664892,1722323453526,-1230.49,0.00013971,2]
[333664893,1722323453536,-1230.49,0.00013971,2]
[333664894,1722323453549,-1230.49,0.00013971,2]
[333664895,1722323453559,-1230.64517893,0.00013971,2]
[333664896,1722323453568,-666.51,0.00013971,2]
[333664897,1722323453578,-666.51,0.00013971,2]
[333664898,1722323453587,-666.51,0.00013971,2]
[333664899,1722323453597,-666.51,0.00013971,2]
[333664900,1722323453606,-666.51,0.00013971,2]
[333664901,1722323453616,-666.51,0.00013971,2]
[333664902,1722323453625,-666.51,0.00013971,2]
[333664903,1722323453635,-666.64,0.00013971,2]
[333664904,1722323453644,-2458.27,0.00013971,2]
[333664905,1722323453653,-2458.27,0.00013971,2]
[333664906,1722323453666,-2458.27,0.00013971,2]
[333664907,1722323453679,-2458.27,0.00013971,2]
[333664908,1722323453688,-2458.27,0.00013971,2]
[333664909,1722323453697,-2458.3324601,0.00013971,2]
[333664910,1722323453708,-614.70982546,0.00013971,2]
[333664911,1722323453717,-500.0,0.00013971,2]
[333664912,1722323453728,-500.0,0.00013971,2]
[333664913,1722323453739,-500.0,0.00013971,2]
[333664914,1722323453751,-500.0,0.00013971,2]
[333664915,1722323453763,-500.0,0.00013971,2]
[333664916,1722323453774,-500.0,0.00013971,2]
[333664917,1722323453784,-188.0102848,0.00013971,2]
[333664918,1722323453793,-153.992695,0.00013971,2]
[333664919,1722323453803,-151.0,0.00013971,2]
[333664920,1722323453812,-151.0,0.00013971,2]
[333664921,1722323453822,-500.0,0.00013972,2]
[333664922,1722323453831,-500.0,0.00013972,2]
[333664923,1722323453841,-500.0,0.00013972,2]
[333664924,1722323453850,-500.0,0.00013972,2]
[333664925,1722323453859,-500.0,0.00013972,2]
[333664926,1722323453868,-521.85,0.00013972,2]
[333664927,1722323453879,-500.0,0.00013972,2]
[333664928,1722323453890,-500.0,0.00013972,2]
[333664929,1722323453900,-500.0,0.00013972,2]
[333664930,1722323453909,-500.0,0.00013972,2]
[333664931,1722323453919,-500.0,0.00013972,2]
[333664932,1722323453929,-481.14099763,0.00013972,2]
[333664933,1722323453939,-500.0,0.00013972,2]
[333664934,1722323453948,-500.0,0.00013972,2]
[333664935,1722323453958,-500.0,0.00013972,2]
[333664936,1722323453967,-500.0,0.00013972,2]
[333664937,1722323453977,-500.0,0.00013972,2]
[333664938,1722323453986,-950.33,0.00013972,2]
[333664939,1722323453996,-500.0,0.00013972,2]
[333664940,1722323454005,-500.0,0.00013972,2]
[333664941,1722323454014,-500.0,0.00013972,2]
[333664942,1722323454023,-500.0,0.00013972,2]
[333664943,1722323454033,-500.0,0.00013972,2]
[333664944,1722323454042,-1064.41,0.00013972,2]
[333664945,1722323454052,-500.0,0.00013972,2]
[333664946,1722323454061,-500.0,0.00013972,2]
[333664947,1722323454071,-500.0,0.00013972,2]
[333664948,1722323454080,-1401.73,0.00013972,2]
[333664949,1722323454090,-500.0,0.00013972,2]
[333664950,1722323454100,-500.0,0.00013972,2]
[333664951,1722323454109,-511.45,0.00013972,2]
[333664952,1722323454119,-599.59,0.00013972,2]
[333664953,1722323454128,-786.59,0.00013972,2]
[333664954,1722323454139,-1405.12,0.00013972,2]
[333664955,1722323454148,-198.86394933,0.00013972,2]
[333664956,1722323454157,-500.0,0.00013972,2]
[333664957,1722323454167,-521.66920791,0.00013972,2]
[333664958,1722323454177,-232.21534782,0.00013972,2]
[333664959,1722323454187,-503.96679384,0.00013972,2]
[333664960,1722323454198,-500.0,0.00013972,2]
[333664961,1722323454312,-515.53200466,0.00013972,2]
[333664962,1722323454323,-500.0,0.00013972,2]
[333664963,1722323454332,-1182.37,0.00013972,2]
[333664964,1722323454342,-1132.06,0.00013972,2]
[333664965,1722323454352,-717.88,0.00013972,2]
[333664966,1722323454361,-528.65684991,0.00013972,2]
[333664967,1722323454371,-500.0,0.00013972,2]
[333664968,1722323454380,-500.0,0.00013972,2]
[333664969,1722323454391,-500.0,0.00013972,2]
[333664970,1722323454402,-500.0,0.00013972,2]
[333664971,1722323454411,-500.0,0.00013972,2]
[333664972,1722323454423,-500.0,0.00013972,2]
[333664973,1722323454434,-351.22863162,0.00013972,2]
[333664974,1722323454507,273.37336231,9.9e-05,2]
[333664975,1722323454529,-150.0,0.00013806,2]
[333664976,1722323454539,-148.77136838,0.00013972,2]
[333664977,1722323454549,-500.0,0.00013972,2]